[Event "Grandmaster Triathlon (GM1)"]
[Site "Biel, CH"]
[Date "2025.07.13"]
[Round "3"]
[White "Wojtaszek, Radoslaw"]
[Black "Fedoseev, Vladimir"]
[Result "1-0"]
[Board "2"]
[TimeControl "900+5"]
[WhiteFideId "1118358"]
[BlackFideId "24130737"]
[WhiteTitle "GM"]
[BlackTitle "GM"]
[WhiteElo "2657"]
[BlackElo "2740"]
[WhiteTeam "POL"]
[BlackTeam "SLO"]
[WhiteClock "0:00:20"]
[BlackClock "0:00:13"]
[Variant "Standard"]

1. d4 {[%clk 0:15:08]}  d5 {[%clk 0:14:57]} 2. c4 {[%clk 0:15:12]}  e6 {[%clk 0:15:01]} 3. Nf3 {[%clk 0:15:03]}  a6 {[%clk 0:15:02]} 4. Bg5 {[%clk 0:15:03]}  Nf6 {[%clk 0:15:05]} 5. cxd5 {[%clk 0:14:41]}  exd5 {[%clk 0:15:08]} 6. Nc3 {[%clk 0:14:42]}  Be7 {[%clk 0:15:11]} 7. e3 {[%clk 0:14:41]}  h6 {[%clk 0:15:14]} 8. Bh4 {[%clk 0:14:37]}  Nbd7 {[%clk 0:15:17]} 9. Bd3 {[%clk 0:14:36]}  c6 {[%clk 0:15:20]} 10. Qc2 {[%clk 0:14:14]}  O-O {[%clk 0:15:20]} 11. O-O {[%clk 0:14:16]}  Re8 {[%clk 0:13:15]} 12. Rad1 {[%clk 0:13:00]}  Nb6 {[%clk 0:12:20]} 13. h3 {[%clk 0:12:40]}  Be6 {[%clk 0:11:56]} 14. Ne5 {[%clk 0:12:23]}  Nfd7 {[%clk 0:11:07]} 15. Bg3 {[%clk 0:12:03]}  Nxe5 {[%clk 0:10:23]} 16. dxe5 {[%clk 0:12:05]}  Qc8 {[%clk 0:09:54]} 17. f4 {[%clk 0:11:58]}  f5 {[%clk 0:08:49]} 18. exf6 {[%clk 0:11:36]}  Bxf6 {[%clk 0:08:53]} 19. e4 {[%clk 0:11:36]}  Bxc3 {[%clk 0:07:30]} 20. bxc3 {[%clk 0:11:32]}  dxe4 {[%clk 0:07:30]} 21. Bxe4 {[%clk 0:11:35]}  Qc7 {[%clk 0:06:22]} 22. Qf2 {[%clk 0:10:51]}  Bc4 {[%clk 0:06:12]} 23. Rfe1 {[%clk 0:09:37]}  Nd5 {[%clk 0:06:05]} 24. Qc5 {[%clk 0:08:59]}  Nb6 {[%clk 0:04:53]} 25. Bf2 {[%clk 0:07:08]}  Qxf4 {[%clk 0:04:57]} 26. g3 {[%clk 0:06:47]}  Qf7 {[%clk 0:04:29]} 27. Qxb6 {[%clk 0:06:49]}  Bxa2 {[%clk 0:04:26]} 28. Qa5 {[%clk 0:06:19]}  Bb3 {[%clk 0:04:16]} 29. Rd2 {[%clk 0:05:50]}  Re6 {[%clk 0:03:19]} 30. Qb4 {[%clk 0:04:56]}  Bd5 {[%clk 0:02:59]} 31. Bxd5 {[%clk 0:04:37]}  Rxe1+ {[%clk 0:03:03]} 32. Bxe1 {[%clk 0:04:41]}  cxd5 {[%clk 0:03:07]} 33. Qd6 {[%clk 0:04:35]}  a5 {[%clk 0:02:24]} 34. Qxd5 {[%clk 0:04:26]}  Qxd5 {[%clk 0:02:22]} 35. Rxd5 {[%clk 0:04:29]}  a4 {[%clk 0:02:26]} 36. Rd2 {[%clk 0:04:11]}  b5 {[%clk 0:02:09]} 37. Rb2 {[%clk 0:03:50]}  Kf7 {[%clk 0:02:09]} 38. Rxb5 {[%clk 0:02:45]}  a3 {[%clk 0:02:13]} 39. Rb1 {[%clk 0:02:49]}  a2 {[%clk 0:01:57]} 40. Ra1 {[%clk 0:02:53]}  Ke6 {[%clk 0:02:01]} 41. c4 {[%clk 0:02:55]}  Kf5 {[%clk 0:01:41]} 42. Bc3 {[%clk 0:02:12]}  Ra3 {[%clk 0:01:44]} 43. Bb2 {[%clk 0:02:01]}  Rxg3+ {[%clk 0:01:20]} 44. Kh2 {[%clk 0:01:36]}  Rd3 {[%clk 0:01:16]} 45. Bxg7 {[%clk 0:01:23]}  Rd2+ {[%clk 0:01:18]} 46. Kg3 {[%clk 0:01:27]}  Kg6 {[%clk 0:01:08]} 47. Bf8 {[%clk 0:01:17]}  Rd3+ {[%clk 0:00:36]} 48. Kg2 {[%clk 0:01:16]}  Rd2+ {[%clk 0:00:32]} 49. Kf3 {[%clk 0:01:16]}  Rc2 {[%clk 0:00:32]} 50. c5 {[%clk 0:01:20]}  h5 {[%clk 0:00:26]} 51. Ke4 {[%clk 0:01:17]}  Kf7 {[%clk 0:00:26]} 52. Bd6 {[%clk 0:01:21]}  Ke6 {[%clk 0:00:30]} 53. Kd3 {[%clk 0:01:09]}  Rf2 {[%clk 0:00:29]} 54. Kc4 {[%clk 0:01:23]}  h4 {[%clk 0:00:29]} 55. Kb5 {[%clk 0:00:49]}  Kd5 {[%clk 0:00:21]} 56. Rd1 {[%clk 0:00:49]}  Ke4 {[%clk 0:00:25]} 57. Kc6 {[%clk 0:00:36]}  Rf3 {[%clk 0:00:29]} 58. Ra1 {[%clk 0:00:35]}  Ra3 {[%clk 0:00:32]} 59. Be7 {[%clk 0:00:37]}  Ke5 {[%clk 0:00:26]} 60. Bxh4 {[%clk 0:00:29]}  Rxh3 {[%clk 0:00:24]} 61. Bd8 {[%clk 0:00:22]}  Ra3 {[%clk 0:00:27]} 62. Kb7 {[%clk 0:00:24]}  Kd4 {[%clk 0:00:09]} 63. c6 {[%clk 0:00:28]}  Kc3 {[%clk 0:00:13]} 64. Bf6+ {[%clk 0:00:20]} 1-0

[Event "Grandmaster Triathlon (GM1)"]
[Site "Biel, CH"]
[Date "2025.07.13"]
[Round "3"]
[White "Murzin, Volodar"]
[Black "Aravindh, Chithambaram VR."]
[Result "1/2-1/2"]
[Board "3"]
[TimeControl "900+5"]
[WhiteFideId "44155573"]
[BlackFideId "5072786"]
[WhiteTitle "GM"]
[BlackTitle "GM"]
[WhiteElo "2644"]
[BlackElo "2576"]
[WhiteTeam "FID"]
[BlackTeam "IND"]
[WhiteClock "0:04:56"]
[BlackClock "0:07:34"]
[Variant "Standard"]

1. d4 {[%clk 0:15:08]}  Nf6 {[%clk 0:15:07]} 2. Nf3 {[%clk 0:15:11]}  e6 {[%clk 0:15:10]} 3. Bf4 {[%clk 0:15:13]}  c5 {[%clk 0:14:19]} 4. e3 {[%clk 0:15:16]}  d5 {[%clk 0:14:10]} 5. Nbd2 {[%clk 0:15:11]}  Nc6 {[%clk 0:13:46]} 6. c3 {[%clk 0:15:14]}  Nh5 {[%clk 0:13:32]} 7. Bg5 {[%clk 0:15:15]}  f6 {[%clk 0:13:31]} 8. Bh4 {[%clk 0:15:19]}  cxd4 {[%clk 0:13:11]} 9. cxd4 {[%clk 0:15:21]}  Be7 {[%clk 0:13:15]} 10. Be2 {[%clk 0:15:24]}  O-O {[%clk 0:10:40]} 11. Ng1 {[%clk 0:13:50]}  g5 {[%clk 0:10:34]} 12. Bxg5 {[%clk 0:13:05]}  fxg5 {[%clk 0:10:38]} 13. Bxh5 {[%clk 0:13:08]}  e5 {[%clk 0:10:41]} 14. Ne2 {[%clk 0:12:22]}  exd4 {[%clk 0:09:17]} 15. Nxd4 {[%clk 0:09:58]}  Nxd4 {[%clk 0:09:09]} 16. exd4 {[%clk 0:10:02]}  Bf6 {[%clk 0:09:11]} 17. Nb3 {[%clk 0:08:58]}  Qe7+ {[%clk 0:08:39]} 18. Qe2 {[%clk 0:08:23]}  Qb4+ {[%clk 0:08:18]} 19. Qd2 {[%clk 0:08:25]}  Qe7+ {[%clk 0:08:13]} 20. Qe3 {[%clk 0:08:01]}  Qb4+ {[%clk 0:08:13]} 21. Qc3 {[%clk 0:04:57]}  Qe7+ {[%clk 0:07:35]} 22. Qe3 {[%clk 0:04:54]}  Qb4+ {[%clk 0:07:34]} 23. Qc3 {[%clk 0:04:56]} 1/2-1/2

[Event "Grandmaster Triathlon (GM1)"]
[Site "Biel, CH"]
[Date "2025.07.13"]
[Round "4"]
[White "Murzin, Volodar"]
[Black "Svane, Frederik"]
[Result "1-0"]
[Board "1"]
[TimeControl "900+5"]
[WhiteFideId "44155573"]
[BlackFideId "12923044"]
[WhiteTitle "GM"]
[BlackTitle "GM"]
[WhiteElo "2644"]
[BlackElo "2487"]
[WhiteTeam "FID"]
[BlackTeam "GER"]
[WhiteClock "0:01:37"]
[BlackClock "0:00:06"]
[Variant "Standard"]

1. d4 {[%clk 0:15:08]}  Nf6 {[%clk 0:15:08]} 2. Nf3 {[%clk 0:15:11]}  d5 {[%clk 0:15:12]} 3. Bf4 {[%clk 0:15:15]}  c5 {[%clk 0:15:15]} 4. e3 {[%clk 0:15:19]}  Nc6 {[%clk 0:15:19]} 5. c3 {[%clk 0:15:00]}  Nh5 {[%clk 0:15:13]} 6. Bg5 {[%clk 0:14:38]}  h6 {[%clk 0:15:06]} 7. Bh4 {[%clk 0:14:42]}  g5 {[%clk 0:13:46]} 8. Bg3 {[%clk 0:14:27]}  cxd4 {[%clk 0:13:07]} 9. cxd4 {[%clk 0:14:08]}  Nxg3 {[%clk 0:11:40]} 10. hxg3 {[%clk 0:14:12]}  e6 {[%clk 0:11:41]} 11. Nc3 {[%clk 0:14:14]}  Bd7 {[%clk 0:11:38]} 12. Bd3 {[%clk 0:14:09]}  Bd6 {[%clk 0:09:12]} 13. a3 {[%clk 0:11:15]}  g4 {[%clk 0:08:28]} 14. Ng1 {[%clk 0:11:13]}  f5 {[%clk 0:07:17]} 15. Nge2 {[%clk 0:11:07]}  Qf6 {[%clk 0:03:49]} 16. Rc1 {[%clk 0:09:26]}  Kf7 {[%clk 0:02:49]} 17. Na4 {[%clk 0:08:58]}  b6 {[%clk 0:01:54]} 18. Ba6 {[%clk 0:08:32]}  Ne7 {[%clk 0:01:46]} 19. Nac3 {[%clk 0:08:30]}  h5 {[%clk 0:01:47]} 20. Bb5 {[%clk 0:08:21]}  Bc8 {[%clk 0:01:41]} 21. Kd2 {[%clk 0:08:10]}  a6 {[%clk 0:01:43]} 22. Bd3 {[%clk 0:08:12]}  b5 {[%clk 0:01:24]} 23. Nf4 {[%clk 0:08:04]}  h4 {[%clk 0:01:18]} 24. Rxh4 {[%clk 0:05:41]}  Rxh4 {[%clk 0:01:20]} 25. gxh4 {[%clk 0:05:45]}  Bxf4 {[%clk 0:00:59]} 26. exf4 {[%clk 0:05:49]}  Qxd4 {[%clk 0:01:03]} 27. g3 {[%clk 0:05:52]}  Qxf2+ {[%clk 0:01:00]} 28. Ne2 {[%clk 0:05:55]}  Bd7 {[%clk 0:00:52]} 29. Qg1 {[%clk 0:05:35]}  Qxg1 {[%clk 0:00:54]} 30. Rd1 {[%clk 0:05:34]}  Qe1+ {[%clk 0:00:54]} 31. Rxe1 {[%clk 0:05:38]}  Nc6 {[%clk 0:00:44]} 32. Rc1 {[%clk 0:05:08]}  Ke7 {[%clk 0:00:44]} 33. Ke3 {[%clk 0:05:02]}  Na5 {[%clk 0:00:20]} 34. Rc2 {[%clk 0:04:35]}  Kd6 {[%clk 0:00:24]} 35. Nd4 {[%clk 0:04:27]}  Nc4+ {[%clk 0:00:14]} 36. Kf2 {[%clk 0:03:52]}  Rc8 {[%clk 0:00:12]} 37. b3 {[%clk 0:03:29]}  Na5 {[%clk 0:00:08]} 38. Rxc8 {[%clk 0:03:29]}  Bxc8 {[%clk 0:00:12]} 39. Ke3 {[%clk 0:02:14]}  Bd7 {[%clk 0:00:17]} 40. Kd2 {[%clk 0:02:18]}  Be8 {[%clk 0:00:11]} 41. Kc3 {[%clk 0:02:17]}  Nb7 {[%clk 0:00:08]} 42. b4 {[%clk 0:02:17]}  Nd8 {[%clk 0:00:07]} 43. Nb3 {[%clk 0:02:20]}  Nb7 {[%clk 0:00:07]} 44. Kd4 {[%clk 0:02:20]}  Nd8 {[%clk 0:00:10]} 45. Nc5 {[%clk 0:02:12]}  Nc6+ {[%clk 0:00:14]} 46. Ke3 {[%clk 0:02:16]}  d4+ {[%clk 0:00:07]} 47. Ke2 {[%clk 0:02:07]}  a5 {[%clk 0:00:07]} 48. Nb7+ {[%clk 0:01:36]}  Kc7 {[%clk 0:00:07]} 49. Nxa5 {[%clk 0:01:40]}  Nxa5 {[%clk 0:00:08]} 50. bxa5 {[%clk 0:01:44]}  Kb7 {[%clk 0:00:07]} 51. Kd2 {[%clk 0:01:42]}  Ka6 {[%clk 0:00:06]} 52. a4 {[%clk 0:01:43]}  Kxa5 {[%clk 0:00:06]} 53. Bxb5 {[%clk 0:01:47]}  Bg6 {[%clk 0:00:08]} 54. Kd3 {[%clk 0:01:22]}  e5 {[%clk 0:00:11]} 55. fxe5 {[%clk 0:01:24]}  f4+ {[%clk 0:00:16]} 56. Kxd4 {[%clk 0:01:28]}  fxg3 {[%clk 0:00:19]} 57. Ke3 {[%clk 0:01:33]}  Bf7 {[%clk 0:00:09]} 58. Bd7 {[%clk 0:01:34]}  Kb6 {[%clk 0:00:06]} 59. e6 {[%clk 0:01:37]} 1-0

[Event "Grandmaster Triathlon (GM1)"]
[Site "Biel, CH"]
[Date "2025.07.13"]
[Round "4"]
[White "Aravindh, Chithambaram VR."]
[Black "Wojtaszek, Radoslaw"]
[Result "1/2-1/2"]
[Board "2"]
[TimeControl "900+5"]
[WhiteFideId "5072786"]
[BlackFideId "1118358"]
[WhiteTitle "GM"]
[BlackTitle "GM"]
[WhiteElo "2576"]
[BlackElo "2657"]
[WhiteTeam "IND"]
[BlackTeam "POL"]
[WhiteClock "0:00:41"]
[BlackClock "0:04:18"]
[Variant "Standard"]

1. e4 {[%clk 0:15:08]}  e5 {[%clk 0:15:09]} 2. Nf3 {[%clk 0:15:11]}  Nc6 {[%clk 0:15:12]} 3. Bb5 {[%clk 0:15:09]}  a6 {[%clk 0:15:16]} 4. Ba4 {[%clk 0:15:12]}  Nf6 {[%clk 0:15:18]} 5. Nc3 {[%clk 0:15:15]}  Be7 {[%clk 0:15:12]} 6. O-O {[%clk 0:14:51]}  b5 {[%clk 0:15:01]} 7. Bb3 {[%clk 0:14:54]}  d6 {[%clk 0:15:04]} 8. a3 {[%clk 0:14:32]}  Bg4 {[%clk 0:15:06]} 9. h3 {[%clk 0:14:26]}  Bxf3 {[%clk 0:14:59]} 10. Qxf3 {[%clk 0:14:29]}  Nd4 {[%clk 0:15:03]} 11. Qd1 {[%clk 0:14:30]}  Nxb3 {[%clk 0:14:52]} 12. cxb3 {[%clk 0:14:33]}  c5 {[%clk 0:14:37]} 13. d3 {[%clk 0:14:33]}  O-O {[%clk 0:14:39]} 14. b4 {[%clk 0:10:51]}  h6 {[%clk 0:10:31]} 15. f4 {[%clk 0:08:45]}  exf4 {[%clk 0:12:27]} 16. Bxf4 {[%clk 0:08:46]}  Qd7 {[%clk 0:12:26]} 17. Kh1 {[%clk 0:06:02]}  Rad8 {[%clk 0:12:11]} 18. d4 {[%clk 0:03:47]}  cxd4 {[%clk 0:08:33]} 19. Qxd4 {[%clk 0:03:50]}  Rfe8 {[%clk 0:08:26]} 20. Bh2 {[%clk 0:03:23]}  Qe6 {[%clk 0:08:17]} 21. Rae1 {[%clk 0:03:04]}  Bf8 {[%clk 0:07:25]} 22. Qd1 {[%clk 0:02:32]}  g6 {[%clk 0:06:00]} 23. Qf3 {[%clk 0:01:46]}  Nd7 {[%clk 0:04:45]} 24. Nd5 {[%clk 0:01:49]}  Rc8 {[%clk 0:04:49]} 25. Re2 {[%clk 0:01:18]}  Bg7 {[%clk 0:04:36]} 26. Ref2 {[%clk 0:01:04]}  Rf8 {[%clk 0:04:32]} 27. Nf4 {[%clk 0:01:05]}  Qe7 {[%clk 0:04:18]} 28. Nd5 {[%clk 0:01:08]}  Qe6 {[%clk 0:04:21]} 29. Nf4 {[%clk 0:00:54]}  Qe7 {[%clk 0:04:18]} 30. Nd5 {[%clk 0:00:41]} 1/2-1/2

[Event "Grandmaster Triathlon (GM1)"]
[Site "Biel, CH"]
[Date "2025.07.13"]
[Round "4"]
[White "Fedoseev, Vladimir"]
[Black "Salem, A.R. Saleh"]
[Result "1-0"]
[Board "3"]
[TimeControl "900+5"]
[WhiteFideId "24130737"]
[BlackFideId "9301348"]
[WhiteTitle "GM"]
[BlackTitle "GM"]
[WhiteElo "2740"]
[BlackElo "2637"]
[WhiteTeam "SLO"]
[BlackTeam "UAE"]
[WhiteClock "0:00:24"]
[BlackClock "0:00:07"]
[Variant "Standard"]

1. d4 {[%clk 0:15:09]}  Nf6 {[%clk 0:15:07]} 2. c4 {[%clk 0:14:50]}  g6 {[%clk 0:15:11]} 3. Nc3 {[%clk 0:14:53]}  d5 {[%clk 0:15:15]} 4. Nf3 {[%clk 0:14:44]}  Bg7 {[%clk 0:15:19]} 5. h4 {[%clk 0:14:48]}  dxc4 {[%clk 0:15:03]} 6. e4 {[%clk 0:14:49]}  O-O {[%clk 0:14:13]} 7. e5 {[%clk 0:12:54]}  Nh5 {[%clk 0:13:16]} 8. Be3 {[%clk 0:12:38]}  c5 {[%clk 0:11:41]} 9. dxc5 {[%clk 0:12:24]}  Nc6 {[%clk 0:11:23]} 10. Bxc4 {[%clk 0:12:18]}  Nxe5 {[%clk 0:09:57]} 11. Nxe5 {[%clk 0:12:15]}  Bxe5 {[%clk 0:10:00]} 12. O-O {[%clk 0:09:46]}  Bd7 {[%clk 0:05:32]} 13. Bh6 {[%clk 0:08:32]}  e6 {[%clk 0:04:55]} 14. Qe2 {[%clk 0:07:24]}  Qf6 {[%clk 0:04:57]} 15. Bxf8 {[%clk 0:06:30]}  Rxf8 {[%clk 0:03:23]} 16. Rfe1 {[%clk 0:04:58]}  Bxc3 {[%clk 0:03:13]} 17. bxc3 {[%clk 0:05:01]}  Qxh4 {[%clk 0:00:42]} 18. g3 {[%clk 0:03:24]}  Qe7 {[%clk 0:00:22]} 19. Rad1 {[%clk 0:03:27]}  Rc8 {[%clk 0:00:24]} 20. Qe5 {[%clk 0:03:05]}  Rxc5 {[%clk 0:00:14]} 21. Qb8+ {[%clk 0:03:09]}  Bc8 {[%clk 0:00:18]} 22. Be2 {[%clk 0:01:58]}  Nf6 {[%clk 0:00:22]} 23. Qxa7 {[%clk 0:01:54]}  Kg7 {[%clk 0:00:16]} 24. c4 {[%clk 0:01:43]}  h5 {[%clk 0:00:19]} 25. Qb6 {[%clk 0:01:25]}  e5 {[%clk 0:00:14]} 26. Qd6 {[%clk 0:01:05]}  Qxd6 {[%clk 0:00:09]} 27. Rxd6 {[%clk 0:01:09]}  e4 {[%clk 0:00:11]} 28. Rb1 {[%clk 0:01:08]}  Rc7 {[%clk 0:00:08]} 29. Rb3 {[%clk 0:01:06]}  Be6 {[%clk 0:00:08]} 30. Rdb6 {[%clk 0:01:09]}  Bc8 {[%clk 0:00:11]} 31. R6b5 {[%clk 0:01:06]}  Nd7 {[%clk 0:00:12]} 32. Rd5 {[%clk 0:01:05]}  Nf6 {[%clk 0:00:11]} 33. Rd4 {[%clk 0:01:07]}  Bd7 {[%clk 0:00:11]} 34. c5 {[%clk 0:00:57]}  Rxc5 {[%clk 0:00:07]} 35. Rxb7 {[%clk 0:01:00]}  Be6 {[%clk 0:00:11]} 36. Rb2 {[%clk 0:00:44]}  Rc3 {[%clk 0:00:09]} 37. Bd1 {[%clk 0:00:48]}  e3 {[%clk 0:00:09]} 38. f3 {[%clk 0:00:41]}  Bd5 {[%clk 0:00:11]} 39. Kg2 {[%clk 0:00:41]}  g5 {[%clk 0:00:10]} 40. Rb5 {[%clk 0:00:25]}  Bxa2 {[%clk 0:00:06]} 41. Rxg5+ {[%clk 0:00:28]}  Kf8 {[%clk 0:00:09]} 42. Re5 {[%clk 0:00:23]}  Be6 {[%clk 0:00:12]} 43. Be2 {[%clk 0:00:24]}  Kg7 {[%clk 0:00:08]} 44. Bd3 {[%clk 0:00:20]}  Ra3 {[%clk 0:00:07]} 45. Rxe3 {[%clk 0:00:23]}  Bf5 {[%clk 0:00:11]} 46. Kf2 {[%clk 0:00:24]}  Be6 {[%clk 0:00:10]} 47. Re5 {[%clk 0:00:27]}  Ra2+ {[%clk 0:00:13]} 48. Re2 {[%clk 0:00:21]}  Ra3 {[%clk 0:00:17]} 49. Rd2 {[%clk 0:00:17]}  Rc3 {[%clk 0:00:20]} 50. Be2 {[%clk 0:00:17]}  Ra3 {[%clk 0:00:24]} 51. Bc4 {[%clk 0:00:20]}  Bf5 {[%clk 0:00:27]} 52. Rf4 {[%clk 0:00:20]}  Bg6 {[%clk 0:00:30]} 53. Rd6 {[%clk 0:00:24]}  Nh7 {[%clk 0:00:25]} 54. Bd5 {[%clk 0:00:17]}  Ng5 {[%clk 0:00:28]} 55. Rd4 {[%clk 0:00:19]}  Rc3 {[%clk 0:00:22]} 56. Rc6 {[%clk 0:00:21]}  Ra3 {[%clk 0:00:22]} 57. f4 {[%clk 0:00:14]}  Nh7 {[%clk 0:00:25]} 58. Be4 {[%clk 0:00:09]}  Bxe4 {[%clk 0:00:29]} 59. Rxe4 {[%clk 0:00:13]}  Nf6 {[%clk 0:00:33]} 60. Re2 {[%clk 0:00:12]}  Ng4+ {[%clk 0:00:37]} 61. Kg2 {[%clk 0:00:16]}  Ne3+ {[%clk 0:00:42]} 62. Kh2 {[%clk 0:00:17]}  Nf1+ {[%clk 0:00:42]} 63. Kg1 {[%clk 0:00:19]}  Nxg3 {[%clk 0:00:44]} 64. Re5 {[%clk 0:00:19]}  f6 {[%clk 0:00:40]} 65. Ree6 {[%clk 0:00:16]}  Ra4 {[%clk 0:00:14]} 66. Rxf6 {[%clk 0:00:16]}  Ne2+ {[%clk 0:00:18]} 67. Kg2 {[%clk 0:00:17]}  Nxf4+ {[%clk 0:00:20]} 68. Kf3 {[%clk 0:00:21]}  Nd5 {[%clk 0:00:13]} 69. Rfd6 {[%clk 0:00:23]}  Rf4+ {[%clk 0:00:14]} 70. Kg3 {[%clk 0:00:20]}  h4+ {[%clk 0:00:18]} 71. Kh3 {[%clk 0:00:24]}  Nf6 {[%clk 0:00:21]} 72. Rd2 {[%clk 0:00:19]}  Kf7 {[%clk 0:00:21]} 73. Rg2 {[%clk 0:00:22]}  Re4 {[%clk 0:00:16]} 74. Rf2 {[%clk 0:00:23]}  Re6 {[%clk 0:00:21]} 75. Rc7+ {[%clk 0:00:23]}  Re7 {[%clk 0:00:24]} 76. Rc4 {[%clk 0:00:26]}  Kg7 {[%clk 0:00:16]} 77. Rg2+ {[%clk 0:00:27]}  Kf7 {[%clk 0:00:17]} 78. Rf2 {[%clk 0:00:31]}  Kg7 {[%clk 0:00:20]} 79. Rc6 {[%clk 0:00:29]}  Rf7 {[%clk 0:00:08]} 80. Rc1 {[%clk 0:00:21]}  Re7 {[%clk 0:00:09]} 81. Rc6 {[%clk 0:00:13]}  Rf7 {[%clk 0:00:11]} 82. Rg2+ {[%clk 0:00:16]}  Kh7 {[%clk 0:00:09]} 83. Rc4 {[%clk 0:00:13]}  Kh8 {[%clk 0:00:09]} 84. Rg6 {[%clk 0:00:15]}  Kh7 {[%clk 0:00:10]} 85. Rg2 {[%clk 0:00:16]}  Kh8 {[%clk 0:00:14]} 86. Rf4 {[%clk 0:00:19]}  Rf8 {[%clk 0:00:14]} 87. Rg6 {[%clk 0:00:17]}  Nh7 {[%clk 0:00:18]} 88. Rfg4 {[%clk 0:00:20]}  Rf3+ {[%clk 0:00:17]} 89. Kxh4 {[%clk 0:00:21]}  Rf8 {[%clk 0:00:20]} 90. Rg1 {[%clk 0:00:14]}  Nf6 {[%clk 0:00:13]} 91. Kg5 {[%clk 0:00:14]}  Nh7+ {[%clk 0:00:17]} 92. Kh6 {[%clk 0:00:10]}  Nf6 {[%clk 0:00:13]} 93. Kg5 {[%clk 0:00:08]}  Nh7+ {[%clk 0:00:15]} 94. Kh5 {[%clk 0:00:13]}  Nf6+ {[%clk 0:00:12]} 95. Kh6 {[%clk 0:00:17]}  Nh7 {[%clk 0:00:16]} 96. R1g2 {[%clk 0:00:10]}  Nf6 {[%clk 0:00:15]} 97. Rh2 {[%clk 0:00:12]}  Nh7 {[%clk 0:00:13]} 98. Rd2 {[%clk 0:00:15]}  Nf6 {[%clk 0:00:14]} 99. Rd6 {[%clk 0:00:18]}  Ng8+ {[%clk 0:00:12]} 100. Kg5 {[%clk 0:00:22]}  Ne7 {[%clk 0:00:10]} 101. Rge6 {[%clk 0:00:25]}  Ng8 {[%clk 0:00:07]} 102. Kg6 {[%clk 0:00:29]}  Rf1 {[%clk 0:00:09]} 103. Re4 {[%clk 0:00:19]}  Rg1+ {[%clk 0:00:11]} 104. Kf5 {[%clk 0:00:22]}  Rf1+ {[%clk 0:00:10]} 105. Ke5 {[%clk 0:00:25]}  Rh1 {[%clk 0:00:10]} 106. Rd8 {[%clk 0:00:26]}  Rg1 {[%clk 0:00:08]} 107. Rd7 {[%clk 0:00:23]}  Rh1 {[%clk 0:00:09]} 108. Rg4 {[%clk 0:00:16]}  Rh5+ {[%clk 0:00:11]} 109. Ke6 {[%clk 0:00:14]}  Rh6+ {[%clk 0:00:14]} 110. Kf5 {[%clk 0:00:17]}  Rf6+ {[%clk 0:00:08]} 111. Kg5 {[%clk 0:00:21]}  Rh6 {[%clk 0:00:11]} 112. Rd8 {[%clk 0:00:21]}  Rh1 {[%clk 0:00:06]} 113. Kf4 {[%clk 0:00:21]}  Rf1+ {[%clk 0:00:07]} 114. Ke3 {[%clk 0:00:24]} 1-0

[Event "Grandmaster Triathlon (GM1)"]
[Site "Biel, CH"]
[Date "2025.07.13"]
[Round "5"]
[White "Svane, Frederik"]
[Black "Fedoseev, Vladimir"]
[Result "0-1"]
[Board "1"]
[TimeControl "900+5"]
[WhiteFideId "12923044"]
[BlackFideId "24130737"]
[WhiteTitle "GM"]
[BlackTitle "GM"]
[WhiteElo "2487"]
[BlackElo "2740"]
[WhiteTeam "GER"]
[BlackTeam "SLO"]
[WhiteClock "0:00:11"]
[BlackClock "0:04:04"]
[Variant "Standard"]

1. e4 {[%clk 0:15:07]}  c5 {[%clk 0:15:06]} 2. Nf3 {[%clk 0:15:03]}  e6 {[%clk 0:15:08]} 3. d4 {[%clk 0:15:03]}  cxd4 {[%clk 0:15:11]} 4. Nxd4 {[%clk 0:15:06]}  Nf6 {[%clk 0:15:15]} 5. Bd3 {[%clk 0:14:53]}  d6 {[%clk 0:14:19]} 6. c4 {[%clk 0:14:42]}  Nc6 {[%clk 0:13:18]} 7. Nxc6 {[%clk 0:14:28]}  bxc6 {[%clk 0:13:22]} 8. Nc3 {[%clk 0:14:25]}  Be7 {[%clk 0:13:19]} 9. O-O {[%clk 0:14:25]}  O-O {[%clk 0:13:22]} 10. Be3 {[%clk 0:14:13]}  Bb7 {[%clk 0:13:06]} 11. a3 {[%clk 0:11:42]}  d5 {[%clk 0:12:31]} 12. exd5 {[%clk 0:10:34]}  cxd5 {[%clk 0:12:34]} 13. Rc1 {[%clk 0:08:30]}  Rc8 {[%clk 0:12:23]} 14. Ne2 {[%clk 0:03:20]}  Ng4 {[%clk 0:09:42]} 15. Bf4 {[%clk 0:03:12]}  Qb6 {[%clk 0:07:47]} 16. cxd5 {[%clk 0:01:45]}  Bxd5 {[%clk 0:07:12]} 17. Nc3 {[%clk 0:01:32]}  Nf6 {[%clk 0:07:16]} 18. Nxd5 {[%clk 0:01:03]}  Nxd5 {[%clk 0:07:20]} 19. Be5 {[%clk 0:00:44]}  Ne3 {[%clk 0:06:34]} 20. Qh5 {[%clk 0:00:24]}  f5 {[%clk 0:06:38]} 21. Rxc8 {[%clk 0:00:17]}  Rxc8 {[%clk 0:06:42]} 22. Rb1 {[%clk 0:00:06]}  Ng4 {[%clk 0:06:37]} 23. Bg3 {[%clk 0:00:10]}  g6 {[%clk 0:06:31]} 24. Qh3 {[%clk 0:00:12]}  Qd4 {[%clk 0:06:08]} 25. Bf1 {[%clk 0:00:06]}  Rc2 {[%clk 0:06:10]} 26. Kh1 {[%clk 0:00:07]}  Rxf2 {[%clk 0:05:54]} 27. Re1 {[%clk 0:00:06]}  Qd2 {[%clk 0:05:09]} 28. Rb1 {[%clk 0:00:10]}  h5 {[%clk 0:04:35]} 29. Bh4 {[%clk 0:00:07]}  Rf4 {[%clk 0:04:16]} 30. Qb3 {[%clk 0:00:07]}  Bxh4 {[%clk 0:03:59]} 31. Qxe6+ {[%clk 0:00:11]}  Kg7 {[%clk 0:04:03]} 32. Bc4 {[%clk 0:00:15]}  Qd4 {[%clk 0:03:49]} 33. Qf7+ {[%clk 0:00:06]}  Kh6 {[%clk 0:03:53]} 34. Qf8+ {[%clk 0:00:06]}  Qg7 {[%clk 0:03:56]} 35. Qxg7+ {[%clk 0:00:07]}  Kxg7 {[%clk 0:04:00]} 36. g3 {[%clk 0:00:11]}  Rxc4 {[%clk 0:04:04]} 0-1